Workbook

Sheet Sales Commission Tracker
B2: SALES COMMISSION TRACKER
C4: Chart Period to View | D4: YEAR
C6: Annual Sales Target | D6: $2,000,000
C8: Commission Percentage | D8: 10%
B11: ACTUAL | C11: JAN | D11: FEB | E11: MAR | F11: APR | G11: MAY | H11: JUN | I11: JUL | J11: AUG | K11: SEP | L11: OCT | M11: NOV | N11: DEC | O11: YEAR
B12: SALES | C12: $65,000 | D12: $32,000 | E12: $78,000 | F12: $116,000 | G12: $250,000 | H12: $130,000 | O12: =SUM(Actual[[#This Row],[JAN]:[DEC]]) -> $671,000
B13: HOLDBACKS | C13: $2,000 | D13: $3,000 | E13: $6,000 | F13: $5,000 | G13: $10,000 | O13: =SUM(Actual[[#This Row],[JAN]:[DEC]]) -> $26,000
B14: ADVANCES | C14: $100 | F14: $1,000 | H14: $4,000 | O14: =SUM(Actual[[#This Row],[JAN]:[DEC]]) -> $5,100
B16: PROJECTED | C16: JAN | D16: FEB | E16: MAR | F16: APR | G16: MAY | H16: JUN | I16: JUL | J16: AUG | K16: SEP | L16: OCT | M16: NOV | N16: DEC | O16: YEAR
B17: SALES | C17: =AnnualSalesTarget/12 -> $166,667 | D17: $166,667 | E17: $166,667 | F17: $166,667 | G17: $166,667 | H17: $166,667 | I17: $166,667 | J17: $166,667 | K17: $166,667 | L17: $166,667 | M17: $166,667 | N17: $166,667 | O17: =SUM(Projected[[JAN]:[DEC]]) -> $2,200,000
B18: COMMISSION | C18: =CommissionPercent*C17 -> $16,667 | D18: $16,667 | E18: $16,667 | F18: $16,667 | G18: $16,667 | H18: $16,667 | I18: $16,667 | J18: $16,667 | K18: $16,667 | L18: $16,667 | M18: $16,667 | N18: $16,667 | O18: =SUM(Projected[[#This Row],[JAN]:[DEC]]) -> $200,000
B20: COMMISSION | C20: JAN | D20: FEB | E20: MAR | F20: APR | G20: MAY | H20: JUN | I20: JUL | J20: AUG | K20: SEP | L20: OCT | M20: NOV | N20: DEC | O20: YEAR
B21: EARNED | C21: =CommissionPercent*C12 -> $6,500 | D21: $3,200 | E21: $7,800 | F21: $11,600 | G21: $25,000 | H21: $13,000 | I21: $0 | J21: $0 | K21: $0 | L21: $0 | M21: $0 | N21: $0 | O21: =SUM(C21:N21) -> $67,100
B22: PAID | C22: =C21-C13+C14 -> $4,600 | D22: $200 | E22: $1,800 | F22: $7,600 | G22: $15,000 | H22: $17,000 | I22: $0 | J22: $0 | K22: $0 | L22: $0 | M22: $0 | N22: $0 | O22: =SUM(C22:N22) -> $46,200

Sheet Month Lookup (hidden)
B2: Month Lookup
B3: This sheet should remain hidden
B4: Month | C4: Number
B5: January | C5: 1
B6: February | C6: 2
B7: March | C7: 3
B8: April | C8: 4
B9: May | C9: 5
B10: June | C10: 6
B11: July | C11: 7
B12: August | C12: 8
B13: September | C13: 9
B14: October | C14: 10
B15: November | C15: 11
B16: December | C16: 12
